Cogmind - Beta 15 @@@ ROGUE MODE // 2025.05.26 @ 18:37:33 Player: Scared Dad Result: Destroyed by D-53 Grenadier with Mini Grenade Launcher Performance ------------- Evolutions (0) 0 Regions Visited (2) 400 Robots Destroyed (14) 70 Value Destroyed (341) 341 Prototype IDs (0) 0 Alien Tech Used (0) 0 Bonus (0) 0 TOTAL SCORE: 811 Bonus ------- None Cogmind --------- Core Integrity 0/250 Matter 262/300 Energy 100/100 System Corruption 1% Temperature Cool (0) Movement Treading (240) Ox1 Location -10/Mines Parts ------- > --- POWER (1) -------- (None) > --- PROPULSION (2) --- Light Treads > --- UTILITY (2) ------ Large Storage Unit Core Shielding > --- WEAPON (2) ------- Assault Rifle Assault Rifle > --- INVENTORY (15) --- Light Treads Light Treads Light Treads Aluminum Leg Aluminum Leg VTOL Module VTOL Module Heat Sink Light Armor Plating Beam Cannon Assault Rifle Assault Rifle Assault Rifle Mining Laser Peak State ------------ > --- POWER ------------ Ion Engine > --- PROPULSION ------- Light Treads Light Treads > --- UTILITY ---------- Heat Sink Small Storage Unit > --- WEAPON ----------- Small Laser Light Assault Rifle > --- INVENTORY -------- Aluminum Leg Aluminum Leg VTOL Module VTOL Module Core Shielding Beam Cannon Light Assault Rifle Light Assault Rifle [Rating: 8] Favorites ----------- Power Ion Engine Engine Ion Engine Propulsion Light Treads Treads Light Treads Wheel Compact Wheel Utility Large Storage Unit Device Heat Sink Storage Large Storage Unit Protection Core Shielding Weapon Assault Rifle Energy Gun Small Laser Ballistic Gun Assault Rifle Build | -11 -10 -10 ------- Run | Yrd Mat Min Slots Evolved . | . . . Power . | . . . Propulsion . | . . . Utility . | . . . Weapon . | . . . Parts Attached 18 | 7 11 . Power 3 | 1 2 . Engine 3 | 1 2 . Core . | . . . Reactor . | . . . Propulsion 6 | 2 4 . Treads 4 | . 4 . Leg . | . . . Wheel 2 | 2 . . Hover . | . . . Flight . | . . . Utility 4 | 1 3 . Device 1 | . 1 . Storage 2 | 1 1 . Processor . | . . . Hackware . | . . . Protection 1 | . 1 . Artifact . | . . . Weapon 5 | 3 2 . Energy Gun 1 | 1 . . Energy Cannon . | . . . Ballistic Gun 4 | 2 2 . Ballistic Cannon . | . . . Launcher . | . . . Special Weapon . | . . . Impact Weapon . | . . . Slashing Weapon . | . . . Piercing Weapon . | . . . Special Melee Weapon . | . . . Unidentified Prototypes . | . . . Parts Lost 3 | . 1 2 Power 1 | . . 1 Propulsion 1 | . . 1 Utility . | . . . Weapon 1 | . 1 . Highest Loss Streak 2 | . 1 2 To Critical Strikes . | . . . Average Backups 8 | 4 8 14 Power . | . . . Propulsion 4 | 2 3 7 Utility . | . . 2 Weapon 3 | . 3 5 Tool/Special . | . . . Unused Backups 17 | . 5 12 Power 1 | . 1 . Propulsion 8 | . 1 7 Utility 1 | . . 1 Weapon 7 | . 3 4 Tool/Special . | . . . Average Slot Usage (%) 97 | . 97 98 Engine 13 | . 14 13 Treads 26 | . 26 27 Wheel 1 | . 1 . Device 3 | . 3 . Storage 14 | . 14 14 Protection 8 | . 7 14 Energy Gun 8 | . 9 . Ballistic Gun 19 | . 18 28 Peak Build Rating 8 | 6 8 8 Average Rating 7 | 5 7 7 On Entrance 4 | . 6 8 Naked Turns . | . . . Heaviest Build 30 | 13 30 30 Greatest Support 40 | 32 40 40 Greatest Overweight (x) . | . . . Average Overweight (x) . | . . . Largest Inventory Capacity 15 | 8 15 15 Average Capacity 11 | 7 11 15 Most Carried 15 | 6 15 14 Average Carried 8 | 4 8 14 Final Capacity 15 | 8 15 15 Final Carried 14 | 6 14 14 Class Distribution -------------------- 100% | Mutant Dominant Class ---------------- Mutant | -10/Materials Mutant | -10/Mines Resources | -11 -10 -10 ----------- Run | Yrd Mat Min Matter Collected 459 | 266 183 10 Remotely . | . . . Salvage Created 396 | . 377 19 Parts 33 | . 30 3 Haulers Intercepted . | . . . Recyclers Shooed . | . . . Parts Field Recycled . | . . . Retrieved Matter . | . . . Parts Self-Destructed . | . . . Prevented . | . . . Kills | -11 -10 -10 ------- Run | Yrd Mat Min Combat Hostiles Destroyed 13 | . 11 2 Guns 12 | . 10 2 AOE 1 | . 1 . Classes Destroyed 4 | . 3 1 Worker 1 | . 1 . Swarmer 6 | . 5 1 Grunt 6 | . 6 . Demolisher 1 | . . 1 Best Kill Streak 3 | . 3 1 Combat Bots Only 3 | . 3 1 Max Kills in Single Turn 2 | . 2 1 Gunslinging . | . . . Exploded 1 | . 1 . Melee . | . . . Uniques/NPCs Destroyed . | . . . Combat | -11 -10 -10 -------- Run | Yrd Mat Min Hostile Shots Fired 61 | . 48 13 Missed 8 | . 7 1 Hits 53 | . 41 12 Projectile 53 | . 41 12 AOE 13 | . 1 12 Damage Taken 1002 | . 564 438 Core 251 | . 133 118 Absorbed by Shields . | . . . Redirected to Shielding 26 | . 2 24 Core Remaining (%) 100 | 100 . . Volleys Fired 33 | . 26 7 Largest 2 | . 2 2 Hottest 60 | . 60 40 Shots Fired 66 | . 52 14 Gun 66 | . 52 14 Cannon . | . . . Launcher . | . . . Special . | . . . Kinetic 48 | . 34 14 Thermal 18 | . 18 . Explosive . | . . . Electromagnetic . | . . . Robot Hit Streak 12 | . 12 9 Robot Miss Streak 5 | . 5 1 Penetration Max . | . . . Secondary Targets 1 | . 1 . Max Gunslinging Chain 1 | . 1 . Shots Hit Robots 38 | . 28 10 Core Hits 24 | . 18 6 Critical Kills 1 | . 1 . Critical Parts Destroyed . | . . . Critical Strikes 1 | . 1 . Destroy 1 | . 1 . Melee Attacks . | . . . Impact . | . . . Slashing . | . . . Piercing . | . . . Sneak Attacks . | . . . Combat Hostiles . | . . . Follow-up Attacks . | . . . Damage Inflicted 445 | . 312 133 Guns 442 | . 312 130 Cannons . | . . . Explosions . | . . . Melee . | . . . Ramming 3 | . . 3 Kinetic 357 | . 227 130 Thermal 85 | . 85 . Explosive . | . . . Electromagnetic . | . . . Impact . | . . . Slashing . | . . . Piercing . | . . . Highest Corruption 1 | . 1 1 Average Corruption 1 | . 1 1 Corruption Purged . | . . . Corruption Blocked . | . . . Effects 4 | . 2 2 Message Errors 2 | . 1 1 Energy Discharges 1 | . . 1 Data Loss (major) 1 | . 1 . Overload Shots . | . . . Overflow Damage . | . . . Projectiles . | . . . Explosions . | . . . Melee . | . . . Knockbacks . | . . . Impact . | . . . Kinetic . | . . . Secondary . | . . . Self-Inflicted Damage . | . . . Shots . | . . . Rammed 1 | . . 1 Targets Rammed 1 | . . 1 Kicked . | . . . Crushed . | . . . Highest Temperature 70 | . 70 . Average Temperature 24 | . 24 . Received Heat Transfer 81 | . 81 . Siege Activations . | . . . Martial Activations . | . . . Shielding Activations . | . . . Robots Disrupted . | . . . Combat Hostiles . | . . . Robots Corrupted . | . . . Combat Hostiles . | . . . Parts Fried . | . . . Impact Corruptions . | . . . Robots Melted . | . . . Combat Hostiles . | . . . Parts Melted 1 | . 1 . Heat Transferred 200 | . 200 . Parts Sabotaged . | . . . Parts Stolen . | . . . Parts Stripped . | . . . Power Chain Reactions . | . . . Alert | -11 -10 -10 ------- Run | Yrd Mat Min Maximum Alert Level . | . . . Low Security (%) 100 | 100 100 100 Level 1 . | . . . Level 2 . | . . . Level 3 . | . . . Level 4 . | . . . Level 5 . | . . . High Security . | . . . Max Security . | . . . Peak Influence 105 | . 105 30 Initial 7 | . . 7 Average 18 | . 21 7 Influence Increases 365 | . 290 75 Destroy 0b10 Robot/C 260 | . 220 40 Destroy 0b10 Robot/NC 5 | . 5 . Destroy Leader 70 | . 50 20 Disable Machine 15 | . . 15 Lose Combat Pursuer 15 | . 15 . Influence Decreases 350 | . 271 79 Entered New Map 12 | . . 12 Time Decay 308 | . 261 47 Lost Part 30 | . 10 20 Squads Dispatched 3 | . 3 . Investigation 2 | . 2 . Extermination . | . . . Reinforcement 1 | . 1 . Assault . | . . . Garrison . | . . . Intercept . | . . . Searches Triggered . | . . . Construction Impeded . | . . . Haulers Reinforced . | . . . Active Scanning Responses . | . . . Cargo Convoy Interrupts . | . . . Stealth | -11 -10 -10 --------- Run | Yrd Mat Min Distress Signals 3 | . 3 . Communications Jammed . | . . . Distress Signals . | . . . Times Spotted 24 | . 19 5 Peak Tracking Total 5 | . 5 3 Tactical Retreats 1 | . 1 . Traps | -11 -10 -10 ------- Run | Yrd Mat Min Traps Triggered 3 | . 3 . Indirectly . | . . . Trap Hack Attempts . | . . . Triggered . | . . . Disarmed . | . . . Reprogrammed . | . . . Reused . | . . . Traps Extracted . | . . . Installed . | . . . Triggered . | . . . Machines | -11 -10 -10 ---------- Run | Yrd Mat Min Machines Disabled 1 | . . 1 Max in Single Turn 1 | . . 1 Machines Repaired . | . . . Machines Dismantled . | . . . Machines Sabotaged . | . . . Overloaded Fab Kills . | . . . Hacking | -11 -10 -10 --------- Run | Yrd Mat Min Machines Accessed 9 | . 9 . Terminals 7 | . 7 . Fabricators . | . . . Repair Stations . | . . . Recycling Units 2 | . 2 . Scanalyzers . | . . . Garrison Access . | . . . Total Hacks 13 | . 13 . Successful 8 | . 8 . Failed 5 | . 5 . Catastrophic . | . . . Database Lockouts . | . . . Manual . | . . . Terminals 11 | . 11 . Fabricators . | . . . Repair Stations . | . . . Recycling Units 2 | . 2 . Scanalyzers . | . . . Garrison Access . | . . . Terminal Hacks 6 | . 6 . Record 1 | . 1 . Emergency Access Points 1 | . 1 . Locate Traps 1 | . 1 . Hauler Manifests 1 | . 1 . Zone Layout 2 | . 2 . Fabricator Hacks . | . . . Repair Station Hacks . | . . . Recycling Unit Hacks 2 | . 2 . Report Inventory 2 | . 2 . Scanalyzer . | . . . Garrison Access Hacks . | . . . Unauthorized Hacks . | . . . Terminals . | . . . Fabricators . | . . . Repair Stations . | . . . Recycling Units . | . . . Scanalyzers . | . . . Garrison Access . | . . . Data Cores Recovered . | . . . Used . | . . . Hacking Detections 7 | . 7 . Full Trace Events . | . . . Feedback Events . | . . . Feedback Blocked . | . . . Robot Schematics Acquired . | . . . Robots Built . | . . . Authchips . | . . . Time . | . . . Total Robot Build Rating . | . . . Part Schematics Acquired . | . . . Parts Built . | . . . Authchips . | . . . Time . | . . . Total Part Build Rating . | . . . Parts Repaired . | . . . Time . | . . . Parts Recycled . | . . . Recycled Matter . | . . . Retrieved Matter . | . . . Retrieved Components . | . . . Parts Scanalyzed . | . . . Part Schematics Acquired . | . . . Parts Damaged . | . . . Bothacking | -11 -10 -10 ------------ Run | Yrd Mat Min Used RIF Installer . | . . . Robots Hacked . | . . . Non-combat . | . . . Combat . | . . . Robot Hacks Applied . | . . . Relay Couplers Released . | . . . Fabnet Peak Effective % . | . . . Robots Rewired . | . . . Allies Hacked . | . . . Hacks Repelled . | . . . Allies | -11 -10 -10 -------- Run | Yrd Mat Min Total Allies 1 | . . 1 Largest Group 1 | . . 1 Highest-Rated Group 31 | . . 31 Highest-Rated Ally 31 | . . 31 Total Orders . | . . . Ally Attacks 4 | . . 4 Total Damage 63 | . . 63 Kills . | . . . Allies Corrupted . | . . . Allies Melted . | . . . Intel | -11 -10 -10 ------- Run | Yrd Mat Min Active Infowar (turns) . | . . . Robot Analysis Total . | . . . Derelict Logs Recovered . | . . . Drone Launches . | . . . Drone Recoveries . | . . . Exploration | -11 -10 -10 ------------- Run | Yrd Mat Min Turns Passed 1689 | 126 1361 202 Spaces Moved 961 | 113 756 92 Core 11 | 11 . . Treads 812 | . 720 92 Legs . | . . . Wheels 138 | 102 36 . Hover . | . . . Flight . | . . . Fastest Speed 50 | 50 100 160 Average Speed 150 | 95 157 160 Slowest Speed 160 | 100 160 160 Overloaded Moves . | . . . Propulsion Burnouts . | . . . Robots Hopped . | . . . Potential Cave-ins . | . . . Cave-ins Triggered . | . . . Exploration Rate (%) 41 | 5 100 20 Regions Visited 2 Branch Regions 1 Pre-discovered Areas 1 | . . 1 Known Exits Taken . | . . . Unknown Exits Taken 2 | 1 1 . Scrap Searched . | . . . Spaces Dug . | . . . Terrain Destroyed . | . . . Melee . | . . . Projectile . | . . . AOE . | . . . Terrain Rammed . | . . . Walls Destroyed . | . . . Machines Disabled . | . . . Actions | -11 -10 -10 --------- Run | Yrd Mat Min Total 1147 | 131 882 134 Wait 85 | . 51 34 Move 959 | 112 755 92 Hop . | . . . Pick Up 34 | 12 22 . Fast Attach 2 | . 2 . Attach 8 | 6 2 . Detach . | . . . Swap 10 | 1 9 . Drop 15 | . 15 . Fire 33 | . 26 7 Melee . | . . . Ram . | . . . Kick . | . . . Crush 1 | . . 1 Escape Stasis . | . . . Rewire . | . . . Trap . | . . . Miscellaneous . | . . . Route ------- -11/Scrapyard -10/Materials (discovered 5 exits: [*Mat x3] / [*Min] / [*Sub]) -10/Mines (discovered 2 exits: [*Mat] / [*Sub]) History --------- Turn | Location | Event 27 | -11/Scrapyard | Discovered new exit (range 15) 127 | -11/Scrapyard | Entered Materials 173 | -10/Materials | Discovered new exit (range 13) 255 | -10/Materials | Discovered new exit (range 16) 315 | -10/Materials | Build established: Mutant 473 | -10/Materials | Discovered new exit (range 17) 628 | -10/Materials | Discovered new exit (range 10) 927 | -10/Materials | Derelicts attacked the area 1111 | -10/Materials | Core integrity fell below 50% 1461 | -10/Materials | Discovered new exit (range 8) 1488 | -10/Materials | Entered Mines 1511 | -10/Mines | Discovered new exit (range 6) 1513 | -10/Mines | Escorted by a lone wolf Derelict 1533 | -10/Mines | Learned location of Storage (-7) 1544 | -10/Mines | Discovered new exit (range 13) 1631 | -10/Mines | Assembled infested the area 1636 | -10/Mines | Assisted by a Guerilla fighting off Assembled 1678 | -10/Mines | Core integrity fell below 20% 1690 | -10/Mines | Destroyed by D-53 Grenadier with Mini Grenade Launcher Last Messages --------------- 01631_ ALERT: Infestation in the mines, dispatching Demolisher response squad. 01636_ A derelict emerges from the shadows: "You need to get out of here! I've been tracking a group of Assembled to figure out where they're coming from, and they're closing on this area, come on!" 01647_ C-30 ARC bursts open, deploying its payload. 01647_ D-53 Grenadier unfolds itself. 01650_ Slammed into T-07 Excavator. 01664_ %8U QWIPANMYJAWH: 01671_ Destroyed Shock Absorption System. 01675_ Core Extractor disabled. 01677_ D-53 Grenadier destroyed. 01678_ The unstable cave ceiling collapses. 01688_ Lgt. Treads destroyed. 01688_ Ion Engine destroyed. 01689_ Core Extractor disabled. Map ----- +----------------------------------------------------+ | ?????????????????????????????????????? | | ?????????????????????????????????????? | | ?????????????????????????????????????? | | ?????????????????????????????????????? | | ?????????????????????????????????????? | | ?????????????????????????????????????? | | ?????????????????????????????????????? | | ?????????????????????????????????????? | | ?????????????????????????????????????? | | ?????????????????????????????????????? | | ?????????????????????????????????????? | | ?????????????????????????????????????? | | ?????????????????????????????????????? | | ?????????????????????????????????????? | | ?????????????????????????????????????? | | ?????????????????????????????????????? | | ??????###????????????????????????????? | | ??????# ????????????????????????????? | | ?????? #????????????????????????????? | | ??????# #????????????#######?????????? | | ??????# #???????????## # ###???????? | | ??????# #??????????## # ###?????? | | ?# ### #####??????# #?????? | | ?# #??????# #?????? | | ?########## #????### ##?????? | | ??????????# #????# @ #??? | | ????????#?# #????# " #??? | | ???????# ##???# #??? | | ????????# #### "d """ #??? | | ????????# #??? | | ????????# ### " " """ """ #??? | | ????????## ##??# """ """ """ #??? | | ?????????## ##??# """ """ """ #??? | | ??????????# ##?# t ??#??? | | ??????????# #?##########?###??????? | | ??????????# ##????????????????????? | | ??????????## #####????????????????? | | ???????????# ##???????????????? | | ???????????# #???????????????? | | ???????????## "% ##??????????????? | | ????????????## ##?????????????? | | ?????????????#### #?????????????? | | ????????????????## #?????????????? | | ?????????????????## ##?????????????? | | ??????????????????# ###??????????????? | | ??????????????????# #????????????????? | | ??????????????????# #????????????????? | | ??????????????????# ###??????????????? | | ??????????????????# #??????????????? | | ??????????????????### #??????????????? | +----------------------------------------------------+ Best States ------------- Heat Dissipation 35 Energy Generation 10 Energy Capacity 250 Matter Stores 300 Matter Capacity 300 Sight Range 16 Terrain Scan Density 10 Core Shielding 20 Evasion (%) 50 Recoil Reduction 2 Item Schematics ----------------- None Robot Schematics ------------------ None Fabricated ------------ Nothing Repaired ---------- Nothing Alien Tech Used ----------------- None Achievements -------------- None Challenges ------------ None Game ------ Seed LightPartitionInterpreter Manual? 0 Play Time 00:14:36 Cumulative 99.0 hours Start 2025.05.26 @ 18:21:09 End 2025.05.26 @ 18:37:33 Sessions 1 Manual Loads 0 Difficulty Rogue Special Mode None Game No. 121 Rogue 121 Adventurer 0 Explorer 0 Win Type - Total 0 Types 0/0/0/0/0/0/0/0/0/0 Lore% 30 Gallery% 45 Achievement% 43 Wizard Run 0 Options --------- Layout 2 ASCII 0 Keyboard 0 Movement Numpad Keybinds 0 Fullscreen 1 Font 24/Smallcaps Map View 50x44 Zoom Use 0% Tactical HUD 1 Map Filters NONE Filters NONE Steam 1 RUN: 866ebdd5-adcb-49cb-8628-2c07ed7135c9